fUSD/lending_fUSD_20241215
["ID","MTS","AMOUNT","RATE_DAILY","PERIOD"]
[345474253,1734281433570,-150.0,0.00018796,2]
[345474254,1734281433581,-150.0,0.00018808,2]
[345474255,1734281433591,-150.66,0.00018808,2]
[345474256,1734281433601,-150.0,0.00018816,2]
[345474257,1734281433610,-150.0,0.00018823,2]
[345474258,1734281433620,-150.0,0.00018851,2]
[345474259,1734281433630,-150.0,0.00018851,2]
[345474260,1734281433639,-150.0,0.00018878,2]
[345474261,1734281433648,-150.0,0.00018886,2]
[345474262,1734281433658,-150.0,0.00018906,2]
[345474263,1734281433667,-1000.0,0.00018911,2]
[345474264,1734281433676,-16491.20752269,0.00018912,2]
[345474265,1734281433688,-3979.36075611,0.00018912,2]
[345474266,1734281433699,-40202.4317212,0.00018912,2]
[345474267,1734281433708,-150.0,0.00018921,2]
[345474268,1734281433718,-150.0,0.00018933,2]
[345474269,1734281433727,-150.0,0.00018956,2]
[345474270,1734281433738,-150.0,0.0001896,2]
[345474271,1734281433748,-150.0,0.00018974,2]
[345474272,1734281433757,-150.0,0.00018974,2]
[345474273,1734281433766,-150.0,0.00018974,2]
[345474274,1734281433776,-150.0,0.00018988,2]
[345474275,1734281433785,-150.0,0.00018991,2]
[345474276,1734281433795,-354.188,0.00019,2]
[345474277,1734281433809,-600.0,0.00019,2]
[345474278,1734281433818,-150.0,0.00019015,2]
[345474279,1734281433827,-150.0,0.00019027,2]
[345474280,1734281433837,-150.0,0.00019042,2]
[345474281,1734281433847,-150.0,0.00019062,2]
[345474282,1734281433856,-150.0,0.0001907,2]
[345474283,1734281433865,-150.0,0.00019097,2]
[345474284,1734281433875,-150.0,0.00019097,2]
[345474285,1734281433884,-150.0,0.00019124,2]
[345474286,1734281433894,-150.0,0.00019132,2]
[345474287,1734281433903,-200.0,0.00019138,2]
[345474288,1734281433913,-150.0,0.0001914,2]
[345474289,1734281433922,-150.0,0.00019152,2]
[345474290,1734281433931,-150.0,0.00019167,2]
[345474291,1734281433941,-150.0,0.00019174,2]
[345474292,1734281433951,-150.0,0.00019174,2]
[345474293,1734281433960,-150.0,0.00019179,4]
[345474294,1734281433969,-210.0,0.00019187,2]
[345474295,1734281433978,-150.0,0.00019202,4]
[345474296,1734281433989,-150.0,0.00019207,4]
[345474297,1734281433998,-150.0,0.00019217,2]
[345474298,1734281434008,-150.0,0.00019234,4]
[345474299,1734281434017,-150.0,0.00019237,4]
[345474300,1734281434026,-1102.1711,0.00019239,2]
[345474301,1734281434035,-150.0,0.00019261,4]
[345474302,1734281434044,-150.0,0.00019272,4]
[345474303,1734281434054,-150.0,0.00019289,4]
[345474304,1734281434063,-150.0,0.00019307,4]
[345474305,1734281434072,-150.0,0.00019307,4]
[345474306,1734281434082,-150.0,0.00019316,4]
[345474307,1734281434091,-1842.43,0.00019339,2]
[345474308,1734281434100,-150.99,0.00019339,2]
[345474309,1734281434110,-150.99,0.00019339,2]
[345474310,1734281434119,-461.18,0.00019339,2]
[345474311,1734281434129,-1605.92,0.00019339,2]
[345474312,1734281434138,-3232.84,0.00019339,2]
[345474313,1734281434148,-5295.79,0.00019339,2]
[345474314,1734281434157,-150.0,0.00019342,4]
[345474315,1734281434166,-150.0,0.00019343,4]
[345474316,1734281434176,-150.0,0.00019371,4]
[345474317,1734281434185,-150.0,0.00019373,4]
[345474318,1734281434195,-150.0,0.00019377,4]
[345474319,1734281434204,-167.97,0.00019392,2]
[345474320,1734281434214,-150.0,0.00019398,4]
[345474321,1734281434223,-150.0,0.00019412,4]
[345474322,1734281434234,-1264.22,0.0001942,2]
[345474323,1734281434244,-150.0,0.00019425,4]
[345474324,1734281434253,-150.0,0.00019447,4]
[345474325,1734281434263,-150.0,0.00019453,4]
[345474326,1734281434273,-150.0,0.00019473,4]
[345474327,1734281434282,-150.0,0.0001948,4]
[345474328,1734281434291,-150.0,0.00019482,4]
[345474329,1734281434301,-150.66,0.00019504,2]
[345474330,1734281434310,-150.0,0.00019507,4]
[345474331,1734281434319,-150.0,0.00019517,4]
[345474332,1734281434329,-150.0,0.00019535,4]
[345474333,1734281434338,-150.0,0.00019552,4]
[345474334,1734281434347,-150.0,0.00019562,4]
[345474335,1734281434357,-150.0,0.00019573,4]
[345474336,1734281434366,-150.0,0.00019573,4]
[345474337,1734281434375,-150.0,0.00019584,2]
[345474338,1734281434385,-1837.1859845,0.00019586,2]
[345474339,1734281434395,-3281.52296364,0.00019587,2]
[345474340,1734281434404,-5181.4395,0.00019587,2]
[345474341,1734281434415,-2023.1634,0.00019587,2]
[345474342,1734281434424,-150.0,0.00019587,4]
[345474343,1734281434433,-379.5796,0.00019588,2]
[345474344,1734281434442,-19051.9414,0.00019588,2]
[345474345,1734281434452,-1640.342,0.00019588,2]
[345474346,1734281434461,-5000.0,0.00019588,2]
[345474347,1734281434471,-646.07806986,0.00019589,2]
[345474348,1734281434483,-150.0,0.0001959,4]
[345474349,1734281434492,-267.51702393,0.00019598,2]
[345474350,1734281434501,-24882.97437066,0.00019598,2]
[345474351,1734281434511,-1491.045,0.000196,2]
[345474352,1734281434521,-436.27,0.00019616,2]
[345474353,1734281434530,-436.27,0.00019616,2]
[345474354,1734281434539,-436.27,0.00019616,2]
[345474355,1734281434548,-436.27,0.00019616,2]
[345474356,1734281434558,-150.0,0.00019617,4]
[345474357,1734281434567,-1837.18598447,0.00019621,2]
[345474358,1734281434576,-150.0,0.00019621,2]
[345474359,1734281434585,-3281.52296355,0.00019622,2]
[345474360,1734281434595,-150.0,0.00019622,4]
[345474361,1734281434604,-150.0,0.0001964,4]
[345474362,1734281434613,-646.07806984,0.00019643,2]
[345474363,1734281434622,-150.0,0.00019644,2]
[345474364,1734281434631,-150.0,0.00019644,4]
[345474365,1734281434641,-1837.18598447,0.00019656,2]
[345474366,1734281434650,-3281.52296355,0.00019657,2]
[345474367,1734281434659,-150.0,0.00019657,4]
[345474368,1734281434669,-150.0,0.00019672,4]
[345474369,1734281434679,-500.0,0.00019673,2]
[345474370,1734281434688,-500.0,0.00019673,2]
[345474371,1734281434698,-535.02291354,0.00019678,2]
[345474372,1734281434709,-10000.0,0.0001968,3]
[345474373,1734281434719,-500.0,0.00019686,3]
[345474374,1734281434729,-500.0,0.00019686,3]
[345474375,1734281434740,-500.0,0.00019686,3]
[345474376,1734281434750,-500.0,0.00019686,3]
[345474377,1734281434759,-500.0,0.00019686,3]
[345474378,1734281434769,-1453.75,0.00019686,3]
[345474379,1734281434779,-500.0,0.00019686,3]
[345474380,1734281434789,-500.0,0.00019686,3]
[345474381,1734281434799,-500.0,0.00019686,3]
[345474382,1734281434812,-500.0,0.00019686,3]
[345474383,1734281434821,-500.0,0.00019686,3]
[345474384,1734281434830,-500.0,0.00019686,3]
[345474385,1734281434843,-645.03,0.00019686,3]
[345474386,1734281434852,-500.0,0.00019686,3]
[345474387,1734281434863,-500.0,0.00019686,3]
[345474388,1734281434874,-500.0,0.00019686,3]
[345474389,1734281434887,-500.0,0.00019686,3]
[345474390,1734281434897,-500.0,0.00019686,3]
[345474391,1734281434908,-500.0,0.00019686,3]
[345474392,1734281434917,-500.0,0.00019686,3]
[345474393,1734281434926,-500.0,0.00019686,3]
[345474394,1734281434936,-500.0,0.00019686,3]
[345474395,1734281434946,-500.0,0.00019686,3]
[345474396,1734281434956,-500.0,0.00019686,3]
[345474397,1734281434967,-500.0,0.00019686,3]
[345474398,1734281434977,-500.0,0.00019686,3]
[345474399,1734281434988,-500.0,0.00019686,3]
[345474400,1734281434998,-500.0,0.00019686,3]
[345474401,1734281435007,-500.0,0.00019686,3]
[345474402,1734281435016,-500.0,0.00019686,3]
[345474403,1734281435025,-500.0,0.00019686,3]
[345474404,1734281435036,-500.0,0.00019686,3]
[345474405,1734281435046,-500.0,0.00019686,3]
[345474406,1734281435057,-580.34,0.00019686,3]
[345474407,1734281435066,-500.0,0.00019686,3]
[345474408,1734281435076,-153.021989,0.00019686,3]
[345474409,1734281435086,-500.0,0.00019686,3]
[345474410,1734281435097,-500.0,0.00019686,3]
[345474411,1734281435107,-157.694128,0.00019686,3]
[345474412,1734281435115,-334.689164,0.00019686,3]
[345474413,1734281435125,-500.0,0.00019686,3]
[345474414,1734281435134,-500.0,0.00019686,3]
[345474415,1734281435144,-866.25,0.00019686,3]
[345474416,1734281435153,-500.0,0.00019686,3]
[345474417,1734281435163,-500.0,0.00019686,3]
[345474418,1734281435174,-500.0,0.00019686,3]
[345474419,1734281435183,-500.0,0.00019686,3]
[345474420,1734281435194,-500.0,0.00019686,3]
[345474421,1734281435204,-500.0,0.00019686,3]
[345474422,1734281435214,-500.0,0.00019687,3]
[345474423,1734281435223,-500.0,0.00019687,3]
[345474424,1734281435234,-246.38005265,0.00019687,3]
[345474425,1734281435243,-500.0,0.00019687,3]
[345474426,1734281435253,-500.0,0.00019687,3]
[345474427,1734281435263,-500.0,0.00019687,3]
[345474428,1734281435273,-500.0,0.00019687,3]
[345474429,1734281435282,-500.0,0.00019687,3]
[345474430,1734281435292,-500.0,0.00019687,3]
[345474431,1734281435301,-500.0,0.00019687,3]
[345474432,1734281435310,-500.0,0.00019687,3]
[345474433,1734281435320,-500.0,0.00019687,3]
[345474434,1734281435329,-500.0,0.00019687,3]
[345474435,1734281435338,-500.0,0.00019687,3]
[345474436,1734281435348,-500.0,0.00019687,3]
[345474437,1734281435357,-500.0,0.00019687,3]
[345474438,1734281435366,-500.0,0.00019687,3]
[345474439,1734281435375,-500.0,0.00019687,3]
[345474440,1734281435384,-500.0,0.00019687,3]
[345474441,1734281435393,-500.0,0.00019687,3]
[345474442,1734281435402,-406.70332042,0.00019687,3]
[345474443,1734281435413,-500.0,0.00019687,3]
[345474444,1734281435422,-500.0,0.00019687,3]
[345474445,1734281435431,-459.20954788,0.00019687,3]
[345474446,1734281435441,-500.0,0.00019687,3]
[345474447,1734281435450,-500.0,0.00019687,3]
[345474448,1734281435460,-500.0,0.00019687,3]
[345474449,1734281435469,-500.0,0.00019687,3]
[345474450,1734281435478,-324.56584885,0.00019687,3]
[345474451,1734281435489,-500.0,0.00019687,3]
[345474452,1734281435502,-500.0,0.00019687,3]
[345474453,1734281435511,-500.0,0.00019687,3]
[345474454,1734281435521,-500.0,0.00019687,3]
[345474455,1734281435530,-500.0,0.00019687,3]
[345474456,1734281435539,-500.0,0.00019687,3]
[345474457,1734281435548,-500.0,0.00019687,3]
[345474458,1734281435558,-500.0,0.00019687,3]
[345474459,1734281435567,-500.0,0.00019687,3]
[345474460,1734281435576,-500.0,0.00019687,3]
[345474461,1734281435586,-500.0,0.00019687,3]
[345474462,1734281435601,-500.0,0.00019687,3]
[345474463,1734281435615,-500.0,0.00019687,3]
[345474464,1734281435625,-500.0,0.00019687,3]
[345474465,1734281435636,-500.0,0.00019687,3]
[345474466,1734281435647,-500.27776234,0.00019687,3]
[345474467,1734281435656,-500.0,0.00019687,3]
[345474468,1734281435666,-500.0,0.00019687,3]
[345474469,1734281435678,-500.0,0.00019687,3]
[345474470,1734281435688,-500.0,0.00019687,3]
[345474471,1734281435697,-500.0,0.00019687,3]
[345474472,1734281435707,-500.0,0.00019687,3]
[345474473,1734281435716,-500.0,0.00019687,3]
[345474474,1734281435726,-500.0,0.00019687,3]
[345474475,1734281435737,-521.37,0.00019687,3]
[345474476,1734281435747,-500.0,0.00019687,3]
[345474477,1734281435756,-500.0,0.00019687,3]
[345474478,1734281435766,-500.0,0.00019687,3]
[345474479,1734281435776,-500.0,0.00019687,3]
[345474480,1734281435787,-500.0,0.00019687,3]
[345474481,1734281435797,-500.0,0.00019687,3]
[345474482,1734281435810,-500.0,0.00019687,3]
[345474483,1734281435821,-500.0,0.00019687,3]
[345474484,1734281435832,-500.0,0.00019687,3]
[345474485,1734281435843,-500.0,0.00019687,3]
[345474486,1734281435852,-500.0,0.00019687,3]
[345474487,1734281435862,-500.0,0.00019687,3]
[345474488,1734281435872,-500.0,0.00019687,3]
[345474489,1734281435884,-512.18680718,0.00019687,3]
[345474490,1734281435893,-500.0,0.00019687,3]
[345474491,1734281435903,-500.0,0.00019687,3]
[345474492,1734281435914,-500.0,0.00019687,3]
[345474493,1734281435925,-500.0,0.00019687,3]
[345474494,1734281435935,-500.0,0.00019687,3]
[345474495,1734281435947,-500.0,0.00019687,3]
[345474496,1734281435958,-500.0,0.00019687,3]
[345474497,1734281435967,-500.0,0.00019687,3]
[345474498,1734281435978,-500.55006492,0.00019687,3]
[345474499,1734281435990,-500.0,0.00019687,3]
[345474500,1734281436002,-500.0,0.00019687,3]
[345474501,1734281436011,-500.18300793,0.00019687,3]
[345474502,1734281436021,-500.0,0.00019687,3]
[345474503,1734281436031,-500.0,0.00019687,3]
[345474504,1734281436040,-500.0,0.00019687,3]
[345474505,1734281436049,-500.0,0.00019687,3]
[345474506,1734281436058,-500.0,0.00019687,3]
[345474507,1734281436067,-500.0,0.00019687,3]
[345474508,1734281436077,-500.0,0.00019687,3]
[345474509,1734281436086,-500.0,0.00019687,3]
[345474510,1734281436095,-500.0,0.00019687,3]
[345474511,1734281436104,-500.0,0.00019687,3]
[345474512,1734281436114,-500.0,0.00019687,3]
[345474513,1734281436123,-500.0,0.00019687,3]
[345474514,1734281436132,-500.0,0.00019687,3]
[345474515,1734281436142,-500.0,0.00019687,3]
[345474516,1734281436151,-500.0,0.00019687,3]
[345474517,1734281436161,-500.0,0.00019687,3]
[345474518,1734281436170,-500.0,0.00019687,3]
[345474519,1734281436180,-500.0,0.00019687,3]
[345474520,1734281436190,-500.0,0.00019687,3]
[345474521,1734281436201,-500.23375103,0.00019687,3]
[345474522,1734281436211,-500.0,0.00019687,3]
[345474523,1734281436220,-564.14321204,0.00019687,3]
[345474524,1734281436230,-500.0,0.00019687,3]
[345474525,1734281436241,-500.0,0.00019687,3]
[345474526,1734281436250,-500.0,0.00019687,3]
[345474527,1734281436260,-500.0,0.00019687,3]
[345474528,1734281436269,-500.0,0.00019687,3]
[345474529,1734281436422,-500.0,0.00019687,3]
[345474530,1734281436432,-500.0,0.00019687,3]
[345474531,1734281436441,-500.0,0.00019687,3]
[345474532,1734281436451,-500.0,0.00019687,3]
[345474533,1734281436459,-500.57210992,0.00019687,3]
[345474534,1734281436469,-500.0,0.00019687,3]
[345474535,1734281436477,-500.0,0.00019687,3]
[345474536,1734281436486,-500.0,0.00019687,3]
[345474537,1734281436496,-500.40291132,0.00019687,3]
[345474538,1734281436505,-500.0,0.00019687,3]
[345474539,1734281436515,-501.32854075,0.00019687,3]
[345474540,1734281436523,-500.0,0.00019687,3]
[345474541,1734281436533,-500.0,0.00019687,3]
[345474542,1734281436542,-500.0,0.00019687,3]
[345474543,1734281436551,-500.0,0.00019687,3]
[345474544,1734281436560,-500.0,0.00019687,3]
[345474545,1734281436569,-500.0,0.00019687,3]
[345474546,1734281436578,-500.0,0.00019687,3]
[345474547,1734281436588,-500.0,0.00019687,3]
[345474548,1734281436597,-500.0,0.00019687,3]
[345474549,1734281436606,-500.0,0.00019687,3]
[345474550,1734281436616,-500.0,0.00019687,3]
[345474551,1734281436627,-500.0,0.00019687,3]
[345474552,1734281436636,-500.25647821,0.00019687,3]
[345474553,1734281436646,-500.0,0.00019687,3]
[345474554,1734281436655,-500.0,0.00019687,3]
[345474555,1734281436665,-500.0,0.00019687,3]
[345474556,1734281436675,-500.0,0.00019687,3]
[345474557,1734281436684,-500.0,0.00019687,3]
[345474558,1734281436694,-500.59163725,0.00019687,3]
[345474559,1734281436706,-500.0,0.00019687,3]
[345474560,1734281436718,-500.0,0.00019687,3]
[345474561,1734281436727,-500.0,0.00019687,3]
[345474562,1734281436738,-500.0,0.00019687,3]
[345474563,1734281436747,-500.0,0.00019687,3]
[345474564,1734281436757,-500.0,0.00019687,3]
[345474565,1734281436770,-500.47514688,0.00019687,3]
[345474566,1734281436779,-500.0,0.00019687,3]
[345474567,1734281436790,-500.0,0.00019687,3]
[345474568,1734281436801,-500.0,0.00019687,3]
[345474569,1734281436811,-500.0,0.00019687,3]
[345474570,1734281436820,-500.0,0.00019687,3]
[345474571,1734281436830,-500.0,0.00019687,3]
[345474572,1734281436839,-500.0,0.00019687,3]
[345474573,1734281436849,-500.0,0.00019687,3]
[345474574,1734281436858,-500.0,0.00019687,3]
[345474575,1734281436868,-500.0,0.00019687,3]
[345474576,1734281436878,-500.0,0.00019687,3]
[345474577,1734281436887,-500.0,0.00019687,3]
[345474578,1734281436898,-500.2658655,0.00019687,3]
[345474579,1734281436907,-500.0,0.00019687,3]
[345474580,1734281436918,-500.0,0.00019687,3]
[345474581,1734281436927,-500.0,0.00019687,3]
[345474582,1734281436936,-500.0,0.00019687,3]
[345474583,1734281436946,-500.0,0.00019687,3]
[345474584,1734281436956,-500.0,0.00019687,3]
[345474585,1734281436966,-500.0,0.00019687,3]
[345474586,1734281436978,-500.0,0.00019687,3]
[345474587,1734281436989,-500.0,0.00019687,3]
[345474588,1734281436998,-500.0,0.00019687,3]
[345474589,1734281437007,-500.0,0.00019687,3]
[345474590,1734281437019,-500.0,0.00019687,3]
[345474591,1734281437030,-500.0,0.00019687,3]
[345474592,1734281437039,-500.0,0.00019687,3]
[345474593,1734281437049,-500.0,0.00019687,3]
[345474594,1734281437059,-500.0,0.00019687,3]
[345474595,1734281437069,-500.0,0.00019687,3]
[345474596,1734281437080,-500.0,0.00019687,3]
[345474597,1734281437090,-500.0,0.00019687,3]
[345474598,1734281437100,-500.0,0.00019687,3]
[345474599,1734281437110,-500.0,0.00019687,3]
[345474600,1734281437120,-500.0,0.00019687,3]
[345474601,1734281437129,-500.0,0.00019687,3]
[345474602,1734281437139,-500.0,0.00019687,3]
[345474603,1734281437149,-500.0,0.00019687,3]
[345474604,1734281437158,-500.0,0.00019687,3]
[345474605,1734281437171,-500.0,0.00019687,3]
[345474606,1734281437180,-500.0,0.00019687,3]
[345474607,1734281437190,-500.0,0.00019687,3]
[345474608,1734281437199,-500.13545945,0.00019687,3]
[345474609,1734281437210,-500.0,0.00019687,3]
[345474610,1734281437220,-500.0,0.00019687,3]
[345474611,1734281437230,-500.0,0.00019687,3]
[345474612,1734281437240,-500.0,0.00019687,3]
[345474613,1734281437250,-500.0,0.00019687,3]
[345474614,1734281437259,-500.0,0.00019687,3]
[345474615,1734281437268,-500.0,0.00019687,3]
[345474616,1734281437278,-500.0,0.00019687,3]
[345474617,1734281437287,-500.0,0.00019687,3]
[345474618,1734281437297,-500.0,0.00019687,3]
[345474619,1734281437306,-500.0,0.00019687,3]
[345474620,1734281437316,-500.0,0.00019687,3]
[345474621,1734281437325,-500.10325046,0.00019687,3]
[345474622,1734281437334,-500.0,0.00019687,3]
[345474623,1734281437344,-500.0,0.00019687,3]
[345474624,1734281437354,-500.0,0.00019687,3]
[345474625,1734281437363,-500.0,0.00019687,3]
[345474626,1734281437372,-500.0,0.00019687,3]
[345474627,1734281437381,-500.0,0.00019687,3]
[345474628,1734281437391,-500.0,0.00019687,3]
[345474629,1734281437400,-500.0,0.00019687,3]
[345474630,1734281437410,-500.0,0.00019687,3]
[345474631,1734281437419,-500.0,0.00019687,3]
[345474632,1734281437430,-500.0,0.00019687,3]
[345474633,1734281437439,-500.0,0.00019687,3]
[345474634,1734281437448,-500.0,0.00019687,3]
[345474635,1734281437458,-182.72435565,0.00019687,3]
[345474636,1734281437468,-500.0,0.00019687,3]
[345474637,1734281437477,-274.89675036,0.00019687,3]
[345474638,1734281437487,-500.0,0.00019687,3]
[345474639,1734281437496,-500.0,0.00019687,3]
[345474640,1734281437505,-500.0,0.00019687,3]
[345474641,1734281437514,-500.0,0.00019687,3]
[345474642,1734281437524,-500.0,0.00019687,3]
[345474643,1734281437533,-500.0,0.00019687,3]
[345474644,1734281437543,-500.0,0.00019687,3]
[345474645,1734281437552,-500.0,0.00019687,3]
[345474646,1734281437561,-500.0,0.00019687,3]
[345474647,1734281437572,-500.0,0.00019687,3]
[345474648,1734281437581,-500.0,0.00019687,3]
[345474649,1734281437590,-286.49403297,0.00019687,3]
[345474650,1734281437601,-500.0,0.00019687,3]
[345474651,1734281437610,-500.0,0.00019687,3]
[345474652,1734281437619,-500.0,0.00019687,3]
[345474653,1734281437628,-509.59,0.00019687,3]
[345474654,1734281437637,-500.0,0.00019687,3]
[345474655,1734281437647,-500.17748341,0.00019687,3]
[345474656,1734281437657,-500.0,0.00019687,3]
[345474657,1734281437667,-500.0,0.00019687,3]
[345474658,1734281437677,-500.0,0.00019687,3]
[345474659,1734281437687,-500.0,0.00019687,3]
[345474660,1734281437697,-500.0,0.00019687,3]
[345474661,1734281437706,-500.0,0.00019687,3]
[345474662,1734281437716,-500.0,0.00019687,3]
[345474663,1734281437725,-500.23196181,0.00019687,3]
[345474664,1734281437735,-500.0,0.00019687,3]
[345474665,1734281437744,-500.0,0.00019687,3]
[345474666,1734281437753,-500.0,0.00019687,3]
[345474667,1734281437763,-534.73,0.00019687,3]
[345474668,1734281437772,-500.0,0.00019687,3]
[345474669,1734281437781,-500.0,0.00019687,3]
[345474670,1734281437791,-500.0,0.00019687,3]
[345474671,1734281437803,-500.0,0.00019687,3]
[345474672,1734281437813,-500.0,0.00019687,3]
[345474673,1734281437823,-500.0,0.00019687,3]
[345474674,1734281437833,-520.06259652,0.00019687,3]
[345474675,1734281437843,-500.0,0.00019687,3]
[345474676,1734281437853,-500.0,0.00019687,3]
[345474677,1734281437862,-500.0,0.00019687,3]
[345474678,1734281437872,-500.0,0.00019687,3]
[345474679,1734281437882,-500.0,0.00019687,3]
[345474680,1734281437892,-500.0,0.00019687,3]
[345474681,1734281437902,-2075.12,0.00019687,3]
[345474682,1734281437911,-500.0,0.00019687,3]
[345474683,1734281437920,-500.89366277,0.00019687,3]
[345474684,1734281437930,-500.0,0.00019687,3]
[345474685,1734281437939,-500.0,0.00019687,3]
[345474686,1734281437950,-500.0,0.00019687,3]
[345474687,1734281437961,-500.0,0.00019687,3]
[345474688,1734281437971,-500.0,0.00019687,3]
[345474689,1734281437981,-500.0,0.00019687,3]
[345474690,1734281437990,-500.0,0.00019687,3]
[345474691,1734281438000,-500.0,0.00019687,3]
[345474692,1734281438009,-500.0,0.00019687,3]
[345474693,1734281438018,-411.60850205,0.00019687,3]
[345474694,1734281438029,-500.0,0.00019687,3]
[345474695,1734281438039,-500.0,0.00019687,3]
[345474696,1734281438051,-500.0,0.00019687,3]
[345474697,1734281438060,-500.0,0.00019687,3]
[345474699,1734281438069,-500.0,0.00019687,3]
[345474700,1734281438078,-500.0,0.00019687,3]
[345474701,1734281438088,-527.39,0.00019687,3]
[345474703,1734281438098,-500.0,0.00019687,3]
[345474704,1734281438108,-500.0,0.00019687,3]
[345474705,1734281438118,-500.0,0.00019687,3]
[345474706,1734281438128,-500.0,0.00019687,3]
[345474707,1734281438138,-500.0,0.00019687,3]
[345474708,1734281438148,-500.0,0.00019687,3]
[345474709,1734281438157,-500.0,0.00019687,3]
[345474710,1734281438166,-500.0,0.00019687,3]
[345474711,1734281438175,-500.0,0.00019687,3]
[345474712,1734281438185,-500.0,0.00019687,3]
[345474713,1734281438195,-500.0,0.00019687,3]
[345474714,1734281438204,-500.0,0.00019687,3]
[345474715,1734281438214,-500.0,0.00019687,3]
[345474716,1734281438223,-500.0,0.00019687,3]
[345474717,1734281438232,-500.0,0.00019687,3]
[345474718,1734281438243,-563.55,0.00019687,3]
[345474719,1734281438252,-500.0,0.00019687,3]
[345474720,1734281438262,-500.0,0.00019687,3]
[345474721,1734281438271,-500.0,0.00019687,3]
[345474722,1734281438280,-500.0,0.00019687,3]
[345474723,1734281438290,-500.0,0.00019687,3]
[345474724,1734281438299,-500.0,0.00019687,3]
[345474725,1734281438309,-500.0,0.00019687,3]
[345474726,1734281438319,-500.0,0.00019687,3]
[345474727,1734281438328,-500.0,0.00019687,3]
[345474728,1734281438338,-500.0,0.00019687,3]
[345474729,1734281438348,-1874.63,0.00019687,3]
[345474730,1734281438358,-500.0,0.00019687,3]
[345474731,1734281438367,-500.0,0.00019687,3]
[345474732,1734281438377,-321.82944886,0.00019687,3]
[345474745,1734281438618,-178.17055114,0.00019687,3]
[345474760,1734281438754,-500.0,0.00019687,3]
[345474762,1734281438766,-500.0,0.00019687,3]
[345474764,1734281438775,-500.0,0.00019687,3]
[345474766,1734281438785,-500.0,0.00019687,3]
[345474768,1734281438794,-335.59457517,0.00019687,3]
[345474770,1734281438805,-500.0,0.00019687,3]
[345474772,1734281438815,-500.0,0.00019687,3]
[345474774,1734281438824,-500.0,0.00019687,3]
[345474776,1734281438833,-500.0,0.00019687,3]
[345474778,1734281438843,-500.0,0.00019687,3]
[345474780,1734281438853,-500.0,0.00019687,3]
[345474782,1734281438863,-500.0,0.00019687,3]
[345474784,1734281438873,-500.0,0.00019687,3]
[345474786,1734281438883,-571.33,0.00019687,3]
[345474788,1734281438893,-500.0,0.00019687,3]
[345474789,1734281438902,-500.0,0.00019687,3]
[345474791,1734281438911,-500.0,0.00019687,3]
[345474793,1734281438921,-500.0,0.00019687,3]
[345474795,1734281438930,-500.0,0.00019687,3]
[345474797,1734281438940,-500.0,0.00019687,3]
[345474798,1734281438949,-200.0,0.00019687,3]